bitfinex/quotes_SOLUSD_20241126
["timestamp","ask_amount","ask_price","bid_price","bid_amount"]
[1732626746056,16.44555878,228.57,228.49,37.517376]
[1732626746057,16.44555878,228.55,228.49,17.517376]
[1732626746257,16.44555878,228.51,228.44,4.3775]
[1732626746487,16.44555878,228.51,228.44,20.82305878]
[1732626746661,136.4,228.56,228.44,20.82305878]
[1732626746662,16.44555878,228.53,228.44,20.82305878]
[1732626747060,16.44555878,228.51,228.44,20.82305878]
[1732626748378,16.44555878,228.49,228.42,20.82325878]
[1732626749484,16.44555878,228.51,228.42,20.82325878]
[1732626749786,152.84555878,228.53,228.44,16.44555878]
[1732626749971,16.44555878,228.53,228.46,16.44555878]
[1732626750283,11.44555878,228.53,228.46,16.44555878]
[1732626750470,11.44555878,228.53,228.44,16.44555878]
[1732626750866,152.84555878,228.55,228.46,16.44555878]
[1732626751060,16.4708,228.58,228.52,16.44555878]
[1732626751267,16.44555878,228.59,228.52,20.82145878]
[1732626751467,136.4,228.53,228.46,17.519438]
[1732626751668,16.44555878,228.5,228.42,16.44555878]
[1732626752464,16.44555878,228.48,228.4,16.44555878]
[1732626752975,16.44555878,228.46,228.39,4.3784]
[1732626753179,16.44555878,228.46,228.38,16.44555878]
[1732626753382,16.44555878,228.47,228.39,16.44555878]
[1732626755185,136.4,228.53,228.45,16.44555878]
[1732626755360,136.4,228.52,228.43,16.44555878]
[1732626755565,16.44555878,228.5,228.43,16.44555878]
[1732626755984,16.44555878,228.5,228.41,16.44555878]
[1732626756985,5.0,228.54,228.39,16.44555878]
[1732626756986,16.44555878,228.48,228.39,16.44555878]
[1732626757195,16.44555878,228.46,228.38,4.3786]
[1732626757484,16.44555878,228.46,228.39,16.44555878]
[1732626757691,16.44555878,228.47,228.39,15.44555878]
[1732626758991,16.44555878,228.47,228.4,4.3782]
[1732626759165,16.44555878,228.45,228.37,24.85706266]
[1732626759360,16.44555878,228.46,228.38,20.82415878]
[1732626760085,16.44555878,228.47,228.39,16.44555878]
[1732626760592,136.4,228.49,228.42,16.44555878]
[1732626761086,136.4,228.43,228.37,1.82570388]
[1732626761271,16.44555878,228.42,228.36,4.3788]
[1732626761469,136.4,228.43,228.38,16.44555878]
[1732626761887,16.44555878,228.46,228.38,16.44555878]
[1732626762069,16.44555878,228.43,228.36,15.3264]
[1732626762585,16.44555878,228.41,228.36,4.3788]
[1732626762993,16.44555878,228.41,228.32,33.65235878]
[1732626763198,16.44555878,228.43,228.35,16.44555878]
[1732626763371,16.44555878,228.41,228.33,31.77415878]
[1732626763577,16.44555878,228.44,228.36,16.44555878]
[1732626764090,16.44555878,228.44,228.37,23.776884]
[1732626764800,16.44555878,228.44,228.36,16.44555878]
[1732626764801,16.44555878,228.4,228.33,4.3796]
[1732626765179,10.0,228.51,228.33,4.3796]
[1732626765180,16.44555878,228.42,228.35,16.44555878]
[1732626765593,16.44555878,228.4,228.33,20.82515878]
[1732626765771,136.4,228.44,228.33,4.3796]
[1732626765971,16.44555878,228.38,228.33,4.3796]
[1732626767174,16.44555878,228.38,228.32,23.776884]
[1732626767403,16.44555878,228.4,228.32,23.776884]
[1732626767584,16.44555878,228.42,228.35,16.44555878]
[1732626767903,16.44555878,228.46,228.38,23.776884]
[1732626768197,16.44555878,228.46,228.4,23.776884]
[1732626768603,136.4,228.48,228.42,16.44555878]
[1732626768898,16.44555878,228.5,228.43,16.44555878]
[1732626769076,152.84555878,228.55,228.47,44.59934278]
[1732626769279,31.53405878,228.56,228.48,16.44555878]
[1732626769503,16.44555878,228.56,228.48,16.44555878]
[1732626769691,16.44555878,228.56,228.47,28.153784]
[1732626769692,16.44555878,228.55,228.47,44.59934278]
[1732626769889,16.44555878,228.54,228.47,44.59934278]
[1732626770088,16.44555878,228.53,228.47,28.153784]
[1732626770611,16.86857368,228.61,228.5,40.22244278]
[1732626770612,15.0885,228.61,228.5,40.22244278]
[1732626770780,16.44555878,228.56,228.49,16.44555878]
[1732626770974,16.44555878,228.56,228.49,23.776884]
[1732626771174,16.44555878,228.55,228.51,23.776884]
[1732626771489,16.44555878,228.52,228.39,6.2357]
[1732626771690,16.44555878,228.5,228.44,23.776884]
[1732626772074,16.44555878,228.5,228.43,23.776884]
[1732626772279,16.44555878,228.49,228.42,16.44555878]
[1732626772478,16.44555878,228.5,228.42,16.44555878]
[1732626772895,16.44555878,228.51,228.43,16.44555878]
[1732626773406,16.44555878,228.5,228.45,23.776884]
[1732626773784,16.44555878,228.49,228.45,23.776884]
[1732626774103,16.44555878,228.5,228.45,23.776884]
[1732626774300,16.44555878,228.5,228.43,23.776884]
[1732626774476,16.44555878,228.5,228.43,28.154584]
[1732626775094,16.44555878,228.5,228.44,16.44555878]
[1732626775599,16.44555878,228.5,228.45,23.776884]
[1732626776003,136.4,228.6,228.48,16.44555878]
[1732626776203,136.4,228.6,228.43,15.3219]
[1732626776204,16.44555878,228.58,228.51,23.776884]
[1732626776495,16.44555878,228.56,228.48,16.44555878]
[1732626776706,16.44555878,228.56,228.49,4.3765]
[1732626777279,16.44555878,228.56,228.4,5.0]
[1732626777280,16.44555878,228.52,228.45,23.776884]
[1732626777482,16.44555878,228.52,228.46,23.776884]
[1732626777705,16.44555878,228.54,228.47,16.44555878]
[1732626778007,16.44555878,228.54,228.48,23.776884]
[1732626778606,16.44555878,228.54,228.49,4.3765]
[1732626780086,16.44555878,228.52,228.49,4.3765]
[1732626780493,16.44555878,228.52,228.45,10.9431]
[1732626780494,16.44555878,228.52,228.46,23.776884]
[1732626780686,16.44555878,228.52,228.46,28.153984]
[1732626783585,16.44555878,228.58,228.46,4.3771]
[1732626783586,16.44555878,228.48,228.46,4.3771]
[1732626783787,22.75255372,228.61,228.5,20.0]
[1732626783997,16.44555878,228.58,228.51,30.098984]
[1732626784310,16.44555878,228.6,228.53,23.776884]
[1732626784516,7.66405372,228.61,228.57,23.776884]
[1732626784804,7.66405372,228.61,228.51,6.3221]
[1732626784805,16.44555878,228.58,228.55,23.776884]
[1732626785012,16.44555878,228.59,228.56,4.3752]
[1732626785186,16.44555878,228.6,228.56,4.3752]
[1732626785987,16.44555878,228.57,228.53,23.776884]
[1732626786193,7.66405372,228.61,228.53,40.22244278]
[1732626786194,16.44555878,228.6,228.53,40.22244278]
[1732626786597,16.44555878,228.59,228.53,23.776884]
[1732626786794,7.66405372,228.61,228.53,23.776884]
[1732626786996,7.66405372,228.61,228.53,16.44555878]
[1732626786997,16.44555878,228.6,228.53,16.44555878]
[1732626787203,24.1096125,228.61,228.54,23.776884]
[1732626787412,24.1096125,228.61,228.54,16.44555878]
[1732626787592,24.1096125,228.61,228.55,23.776884]
[1732626788119,24.1096125,228.61,228.56,4.3752]
[1732626788289,16.44555878,228.59,228.57,23.776884]
[1732626788487,16.44555878,228.58,228.53,4.3757]
[1732626789183,16.44555878,228.55,228.53,4.3757]
[1732626789386,16.44555878,228.54,228.46,6.3221]
[1732626789696,16.44555878,228.52,228.5,4.3762]
[1732626790085,16.44555878,228.52,228.46,6.3221]
[1732626790393,16.44555878,228.51,228.47,4.3769]
[1732626790892,16.44555878,228.5,228.47,4.3769]
[1732626791093,16.44555878,228.52,228.47,4.3769]
[1732626791293,16.44555878,228.51,228.47,4.3769]
[1732626791501,144.06405372,228.61,228.47,4.3769]
[1732626791795,16.44555878,228.53,228.48,23.776884]
[1732626792509,16.44555878,228.49,228.47,28.153784]
[1732626793113,16.44555878,228.51,228.47,28.153784]
[1732626795112,136.4,228.56,228.44,42.54225878]
[1732626795113,16.44555878,228.49,228.45,4.3771]
[1732626795298,16.44555878,228.58,228.4,33.71285878]
[1732626795299,16.44555878,228.46,228.41,4.378]
[1732626795493,5.0,228.57,228.41,4.378]
[1732626795494,16.44555878,228.44,228.41,4.378]
[1732626795690,16.44555878,228.44,228.36,27.39275878]
[1732626795904,16.44555878,228.4,228.37,4.3788]
[1732626796212,16.44555878,228.44,228.37,4.3788]
[1732626796515,16.44555878,228.43,228.37,4.3788]
[1732626797006,16.44555878,228.44,228.37,4.3788]
[1732626797594,16.44555878,228.44,228.37,20.82435878]
[1732626798006,16.44555878,228.44,228.38,23.776884]
[1732626798513,16.44555878,228.45,228.4,23.776884]
[1732626798812,16.44555878,228.41,228.35,4.3792]
[1732626799020,16.44555878,228.47,228.35,4.3792]
[1732626799021,16.44555878,228.37,228.35,4.3792]
[1732626799221,16.44555878,228.39,228.35,4.3792]
[1732626799515,16.44555878,228.38,228.3,16.44555878]
[1732626799712,16.44555878,228.35,228.3,4.3802]
[1732626800010,16.44555878,228.37,228.3,4.3802]
[1732626800196,16.44555878,228.37,228.3,20.82575878]
[1732626800713,152.84555878,228.4,228.32,16.44555878]
[1732626800911,136.4,228.4,228.35,16.44555878]
[1732626801087,136.4,228.48,228.39,40.22244278]
[1732626801289,136.4,228.51,228.42,23.776884]
[1732626802419,136.4,228.51,228.43,4.3777]
[1732626802713,26.33959517,228.46,228.44,23.776884]
[1732626802915,26.33959517,228.45,228.41,23.776884]
[1732626803293,26.33959517,228.48,228.41,50.11647917]
[1732626803995,26.33959517,228.48,228.41,23.776884]
[1732626804202,26.33959517,228.45,228.41,23.776884]
[1732626804400,136.4,228.5,228.41,23.776884]
[1732626804401,26.33959517,228.46,228.41,28.154784]
[1732626804620,26.33959517,228.43,228.41,23.776884]
[1732626804823,26.33959517,228.44,228.41,23.776884]
[1732626805020,26.33959517,228.45,228.41,28.154884]
[1732626806416,26.33959517,228.49,228.41,54.49447917]
[1732626806618,26.33959517,228.49,228.43,23.776884]
[1732626807219,26.33959517,228.49,228.42,23.776884]
[1732626807422,26.33959517,228.46,228.42,23.776884]
[1732626807721,26.33959517,228.44,228.39,23.776884]
[1732626807913,26.33959517,228.44,228.38,30.71809517]
[1732626808116,26.33959517,228.44,228.38,4.3785]
[1732626808330,26.33959517,228.42,228.38,4.3785]
[1732626808518,26.33959517,228.42,228.35,4.3792]
[1732626809798,26.33959517,228.4,228.34,20.0]
[1732626810003,26.33959517,228.38,228.33,4.3794]
[1732626810428,6.3586,228.46,228.31,26.33959517]
[1732626810429,136.4,228.43,228.31,26.33959517]
[1732626810607,26.33959517,228.4,228.32,30.71939517]
[1732626810804,26.33959517,228.41,228.34,26.33959517]
[1732626811622,136.4,228.42,228.32,4.3798]
[1732626811623,136.4,228.42,228.35,50.11647917]
[1732626811817,26.33959517,228.46,228.38,26.33959517]
[1732626812017,26.33959517,228.47,228.4,23.776884]
[1732626812326,162.73959517,228.48,228.42,23.776884]
[1732626812515,162.73959517,228.48,228.42,28.154684]
[1732626813128,162.73959517,228.48,228.42,23.776884]
[1732626813429,26.33959517,228.46,228.41,23.776884]
[1732626814436,26.33959517,228.46,228.41,28.154784]
[1732626814726,162.73959517,228.5,228.42,26.33959517]
[1732626815130,26.33959517,228.52,228.44,26.33959517]
[1732626815304,26.33959517,228.52,228.46,23.776884]
[1732626815509,26.33959517,228.56,228.48,23.776884]
[1732626815824,26.33959517,228.56,228.49,26.33959517]
[1732626816128,26.33959517,228.58,228.5,23.776884]
[1732626816344,26.33959517,228.55,228.5,23.776884]
[1732626816625,26.33959517,228.55,228.48,23.776884]
[1732626816840,26.33959517,228.52,228.47,23.776884]
[1732626817012,26.33959517,228.5,228.45,4.3773]
[1732626817206,26.33959517,228.49,228.43,27.0218]
[1732626817720,26.33959517,228.52,228.43,53.36139517]
[1732626818024,26.33959517,228.52,228.43,27.0218]
[1732626818211,26.33959517,228.52,228.44,26.33959517]
[1732626818409,26.33959517,228.52,228.46,23.776884]
[1732626818720,26.33959517,228.56,228.49,26.33959517]
[1732626819030,7.66405372,228.61,228.46,50.11647917]
[1732626819031,136.4,228.58,228.46,50.11647917]
[1732626819325,26.33959517,228.51,228.46,23.776884]
[1732626819507,26.33959517,228.52,228.46,23.776884]
[1732626819710,20.0,228.55,228.46,50.11647917]
[1732626819908,26.33959517,228.54,228.46,50.11647917]
[1732626820227,26.33959517,228.55,228.48,23.776884]
[1732626820422,26.33959517,228.55,228.5,23.776884]
[1732626822233,26.33959517,228.54,228.5,28.153184]
[1732626822732,26.33959517,228.53,228.5,28.153184]
[1732626823322,26.33959517,228.54,228.5,28.153184]
[1732626823524,26.33959517,228.55,228.5,28.153184]
[1732626824424,16.45359317,228.55,228.5,28.153184]
[1732626824640,16.45359317,228.54,228.5,28.153184]
[1732626824939,16.45359317,228.53,228.5,23.776884]
[1732626825235,16.45359317,228.54,228.47,28.153784]
[1732626825609,16.45359317,228.55,228.49,23.776884]
[1732626825811,136.4,228.56,228.49,23.776884]
[1732626825812,16.45359317,228.54,228.49,23.776884]
[1732626826137,16.45359317,228.54,228.48,23.776884]
[1732626826313,16.45359317,228.55,228.48,40.23047717]
[1732626827346,152.85359317,228.56,228.49,16.45359317]
[1732626827526,152.85359317,228.56,228.5,28.153184]
[1732626827711,16.45359317,228.55,228.5,28.153184]
[1732626828027,16.45359317,228.57,228.5,28.153184]
[1732626828241,136.4,228.6,228.5,28.153184]
[1732626828242,16.45359317,228.54,228.5,28.153184]
[1732626828542,16.45359317,228.55,228.49,23.776884]
[1732626829233,16.45359317,228.56,228.49,23.776884]
[1732626829627,16.45359317,228.56,228.51,23.776884]
[1732626830138,16.45359317,228.55,228.51,23.776884]
[1732626830440,16.45359317,228.53,228.49,23.776884]
[1732626830626,16.45359317,228.53,228.47,4.3769]
[1732626830827,16.45359317,228.53,228.45,16.45359317]
[1732626831136,16.45359317,228.52,228.46,4.3771]
[1732626831317,16.45359317,228.53,228.46,4.3771]
[1732626831976,136.4,228.59,228.5,20.0]
[1732626832268,16.45359317,228.56,228.5,23.776884]
[1732626832822,16.45359317,228.57,228.5,40.23047717]
[1732626833135,16.45359317,228.58,228.53,23.776884]
[1732626833347,16.45359317,228.57,228.5,40.23047717]
[1732626833821,16.45359317,228.57,228.52,23.776884]
[1732626834325,16.45359317,228.57,228.51,23.776884]
[1732626834524,136.4,228.6,228.51,23.776884]
[1732626834525,16.45359317,228.56,228.51,23.776884]
[1732626834729,16.45359317,228.57,228.51,23.776884]
[1732626835844,16.45359317,228.57,228.51,28.152884]
[1732626836551,16.45359317,228.56,228.51,28.152884]
[1732626836925,16.45359317,228.57,228.51,28.152884]
[1732626838139,16.45359317,228.56,228.51,28.152884]
[1732626838944,16.45359317,228.57,228.51,28.152884]
[1732626839932,16.45359317,228.58,228.51,44.60647717]
[1732626840130,16.45359317,228.59,228.51,44.60647717]
[1732626840342,160.51764689,228.61,228.54,16.45359317]
[1732626840535,160.51764689,228.61,228.55,23.776884]
[1732626841123,16.45359317,228.6,228.55,23.776884]
[1732626841329,16.45359317,228.6,228.54,23.776884]
[1732626841849,160.51764689,228.61,228.54,23.776884]
[1732626842149,160.51764689,228.61,228.56,23.776884]
[1732626842829,7.66405372,228.61,228.58,23.776884]
[1732626843229,7.66405372,228.61,228.56,40.23047717]
[1732626844035,7.66405372,228.61,228.56,23.776884]
[1732626844247,7.66405372,228.61,228.57,4.375]
[1732626844438,16.45359317,228.59,228.58,23.776884]
[1732626845529,7.66405372,228.61,228.56,23.776884]
[1732626845530,24.11764689,228.61,228.56,23.776884]
[1732626846030,16.45359317,228.6,228.56,23.776884]
[1732626846427,7.66405372,228.61,228.56,28.151984]
[1732626846428,24.11764689,228.61,228.56,28.151984]
[1732626846643,7.66405372,228.61,228.56,28.151984]
[1732626846849,24.11764689,228.61,228.56,28.151984]
[1732626847151,16.45359317,228.6,228.56,28.151984]
[1732626848251,24.11764689,228.61,228.56,28.151984]
[1732626848434,7.66405372,228.61,228.56,28.151984]
[1732626848754,24.11764689,228.61,228.56,28.151984]
[1732626849054,16.45359317,228.57,228.49,6.6497]
[1732626849347,16.45359317,228.52,228.49,6.6497]
[1732626849554,16.45359317,228.51,228.48,15.0823]
[1732626849856,16.45359317,228.5,228.45,4.3773]
[1732626850039,16.45359317,228.51,228.45,4.3773]
[1732626850435,16.45359317,228.5,228.45,4.3773]
[1732626851250,16.45359317,228.47,228.44,11.0272]
[1732626851549,16.45359317,228.5,228.44,11.0272]
[1732626852154,16.45359317,228.5,228.45,23.776884]
[1732626852459,16.45359317,228.49,228.45,23.776884]
[1732626852637,16.45359317,228.5,228.45,28.154084]
[1732626852959,16.45359317,228.52,228.45,44.60767717]
[1732626853255,16.45359317,228.53,228.46,16.45359317]
[1732626853452,16.45359317,228.53,228.47,23.776884]
[1732626853644,152.85359317,228.54,228.47,40.23047717]
[1732626853845,16.45359317,228.53,228.5,1.0]
[1732626854042,16.45359317,228.58,228.51,23.776884]
[1732626854043,16.45359317,228.52,228.51,23.776884]
[1732626854349,16.45359317,228.52,228.5,1.0]
[1732626854553,152.85359317,228.51,228.5,1.0]
[1732626855135,16.45359317,228.51,228.5,1.0]
[1732626857959,16.45359317,228.52,228.5,1.0]
[1732626858255,16.45359317,228.51,228.5,1.0]
[1732626859349,16.45359317,228.54,228.51,23.776884]
[1732626859752,16.45359317,228.52,228.51,23.776884]
[1732626859945,16.45359317,228.52,228.5,1.0]
[1732626860135,16.45359317,228.51,228.5,1.0]
[1732626860557,16.45359317,228.51,228.5,24.776884]
[1732626861044,16.45359317,228.51,228.5,1.0]
[1732626864839,16.45359317,228.4,228.34,4.3794]
[1732626865067,16.45359317,228.36,228.33,10.6853]
[1732626865241,16.45359317,228.34,228.32,20.2947]
[1732626865438,16.45359317,228.34,228.32,15.9149]
[1732626865637,16.45359317,228.34,228.28,6.3057]
[1732626865638,16.45359317,228.33,228.28,6.3057]
[1732626865842,5.0,228.42,228.23,4.3813]
[1732626865843,16.45359317,228.29,228.23,4.3813]
[1732626866068,16.45359317,228.24,228.2,15.9149]
[1732626866371,16.45359317,228.25,228.2,20.2969]
[1732626866741,16.45359317,228.25,228.2,15.9149]
[1732626866970,16.45359317,228.22,228.18,4.3823]
[1732626867146,16.45359317,228.21,228.16,6.3057]
[1732626867465,16.45359317,228.17,228.09,1.78936594]
[1732626867763,16.45359317,228.16,228.1,4.384]
[1732626867943,7.67667604,228.22,228.13,16.45359317]
[1732626868354,7.67667604,228.22,228.1,4.384]
[1732626868355,16.45359317,228.16,228.1,4.384]
[1732626868567,7.67667604,228.22,228.1,4.384]
[1732626868748,16.45359317,228.17,228.1,4.384]
[1732626868947,16.45359317,228.19,228.1,4.384]
[1732626869153,7.67667604,228.22,228.1,4.384]
[1732626869353,24.13026921,228.22,228.15,16.45359317]
[1732626869671,16.45359317,228.19,228.15,23.776884]
[1732626869872,16.45359317,228.19,228.1,15.3441]
[1732626869873,7.67667604,228.22,228.11,23.776884]
[1732626870060,16.45359317,228.2,228.14,23.776884]
[1732626870768,16.45359317,228.19,228.13,23.776884]
[1732626870973,16.45359317,228.17,228.1,4.384]
[1732626871353,16.45359317,228.17,228.1,20.83759317]
[1732626871666,16.45359317,228.19,228.12,16.45359317]
[1732626872568,16.45359317,228.19,228.1,4.384]
[1732626872569,24.13026921,228.22,228.15,23.776884]
[1732626872759,7.67667604,228.22,228.17,16.45359317]
[1732626872959,7.67667604,228.22,228.18,23.776884]
[1732626873362,7.67667604,228.22,228.18,40.23047717]
[1732626873553,7.67667604,228.22,228.2,23.776884]
[1732626875171,16.45359317,228.21,228.14,24.3832]
[1732626875383,16.45359317,228.19,228.14,4.3832]
[1732626875879,7.67667604,228.22,228.14,24.3832]
[1732626875880,16.45359317,228.2,228.14,24.3832]
[1732626876062,7.67667604,228.22,228.16,16.45359317]
[1732626876369,24.13026921,228.22,228.15,16.45359317]
[1732626876678,24.13026921,228.22,228.16,23.776884]
[1732626877471,7.67667604,228.22,228.17,16.45359317]
[1732626877682,7.67667604,228.22,228.2,23.776884]
[1732626879666,7.67667604,228.22,228.19,28.159184]
[1732626880178,7.67667604,228.22,228.21,23.776884]
[1732626880669,7.67667604,228.22,228.2,23.776884]
[1732626881458,7.67667604,228.22,228.2,40.23047717]
[1732626881676,7.67667604,228.22,228.21,44.61237717]
[1732626882067,7.67667604,228.22,228.21,28.158784]
[1732626882776,7.67667604,228.22,228.21,44.61237717]
[1732626883280,29.05172934,228.32,228.24,20.0]
[1732626883467,29.05172934,228.32,228.26,23.776884]
[1732626883856,16.45359317,228.3,228.26,23.776884]
[1732626884059,16.45359317,228.27,228.26,23.776884]
[1732626884283,16.45359317,228.27,228.18,4.3825]
[1732626884459,12.59813617,228.32,228.18,4.3825]
[1732626884460,16.45359317,228.19,228.18,4.3825]
[1732626884981,16.45359317,228.21,228.17,4.3826]
[1732626885160,16.45359317,228.24,228.17,20.83619317]
[1732626885359,16.45359317,228.25,228.18,16.45359317]
[1732626885680,16.45359317,228.26,228.18,40.23047717]
[1732626885855,16.45359317,228.26,228.2,23.776884]
[1732626886053,16.45359317,228.28,228.2,40.23047717]
[1732626886362,16.45359317,228.29,228.21,16.45359317]
[1732626886669,16.45359317,228.28,228.24,23.776884]
[1732626886981,16.45359317,228.29,228.23,23.776884]
[1732626888182,16.45359317,228.28,228.23,23.776884]
[1732626888366,16.45359317,228.28,228.25,23.776884]
[1732626888567,16.45359317,228.27,228.25,23.776884]
[1732626888775,16.45359317,228.26,228.25,23.776884]
[1732626889182,16.45359317,228.26,228.23,23.776884]
[1732626889365,16.45359317,228.24,228.23,23.776884]
[1732626889561,16.45359317,228.27,228.23,23.776884]
[1732626890283,16.45359317,228.27,228.25,23.776884]
[1732626890483,152.85359317,228.3,228.25,23.776884]
[1732626890665,136.4,228.3,228.25,23.776884]
[1732626891185,136.4,228.3,228.25,40.23047717]
[1732626891366,136.4,228.3,228.25,23.776884]
[1732626891569,152.85359317,228.3,228.25,23.776884]
[1732626892192,16.45359317,228.29,228.23,23.776884]
[1732626893081,152.85359317,228.3,228.23,40.23047717]
[1732626893264,136.4,228.3,228.23,40.23047717]
[1732626893659,152.85359317,228.3,228.23,40.23047717]
[1732626893975,16.45359317,228.29,228.23,23.776884]
[1732626894489,16.45359317,228.29,228.25,23.776884]
[1732626894990,16.45359317,228.26,228.19,4.3823]
[1732626895285,16.45359317,228.25,228.19,4.3823]
[1732626895957,16.45359317,228.29,228.21,16.45359317]
[1732626896585,16.45359317,228.29,228.22,4.3817]
[1732626896789,16.45359317,228.29,228.23,23.776884]
[1732626896962,12.59813617,228.32,228.23,23.776884]
[1732626897168,16.45359317,228.28,228.23,23.776884]
[1732626897391,16.45359317,228.26,228.23,23.776884]
[1732626898267,16.45359317,228.27,228.23,23.776884]
[1732626898575,16.45359317,228.24,228.2,4.3819]
[1732626899592,16.45359317,228.25,228.2,4.3819]
[1732626899778,16.45359317,228.25,228.21,23.776884]
[1732626900369,16.45359317,228.26,228.21,23.776884]
[1732626900687,16.45359317,228.27,228.23,23.776884]
[1732626900871,152.85359317,228.31,228.23,40.23047717]
[1732626901067,16.45359317,228.3,228.23,23.776884]
[1732626901262,152.85359317,228.31,228.24,16.45359317]
[1732626901492,12.59813617,228.32,228.26,40.23047717]
[1732626901665,136.4,228.39,228.29,23.776884]
[1732626901867,136.4,228.42,228.29,23.776884]
[1732626902063,16.45359317,228.4,228.34,23.776884]
[1732626902590,16.5981,228.47,228.34,23.776884]
[1732626902591,16.45359317,228.42,228.35,40.23047717]
[1732626902790,24.12298636,228.44,228.37,40.23047717]
[1732626902997,7.66939319,228.44,228.38,23.776884]
[1732626903171,7.66939319,228.44,228.38,40.23047717]
[1732626903882,7.66939319,228.44,228.4,16.45359317]
[1732626904081,7.66939319,228.44,228.41,23.776884]
[1732626904479,7.66939319,228.44,228.39,40.23047717]
[1732626904706,7.66939319,228.44,228.33,5.0]
[1732626904707,16.45359317,228.43,228.41,23.776884]
[1732626905014,16.45359317,228.42,228.36,4.3788]
[1732626905184,16.45359317,228.41,228.37,23.776884]
[1732626905383,16.45359317,228.39,228.37,23.776884]
[1732626905578,7.66939319,228.44,228.35,23.776884]
[1732626905899,16.45359317,228.4,228.35,23.776884]
[1732626906207,7.66939319,228.44,228.35,23.776884]
[1732626906580,7.66939319,228.44,228.43,40.23047717]
[1732626907504,16.45359317,228.57,228.43,40.35596717]
[1732626907687,16.45359317,228.57,228.5,16.45359317]
[1732626908302,107.84757901,228.66,228.5,16.45359317]
[1732626908303,106.09359317,228.66,228.56,16.45359317]
[1732626908508,16.45359317,228.64,228.57,16.45359317]
[1732626908797,1.00939048,228.65,228.56,16.45359317]
[1732626908798,16.45359317,228.63,228.56,16.45359317]
[1732626909201,16.45359317,228.61,228.54,16.45359317]
[1732626909395,16.45359317,228.62,228.55,23.776884]
[1732626909798,16.45359317,228.62,228.55,40.23047717]
[1732626910304,16.45359317,228.62,228.51,15.3165]
[1732626910305,26.30382261,228.64,228.57,23.776884]
[1732626910606,26.30382261,228.64,228.59,23.776884]
[1732626910781,106.60407447,228.67,228.59,23.776884]
[1732626910782,26.30382261,228.65,228.59,23.776884]
[1732626910982,0.5104813,228.67,228.63,26.30382261]
[1732626911199,0.5104813,228.67,228.66,50.08070661]
[1732626912206,0.5104813,228.67,228.66,23.776884]
[1732626912405,0.5104813,228.67,228.66,50.08070661]
[1732626912614,0.5104813,228.67,228.66,54.45400661]
[1732626914010,0.5104813,228.67,228.65,23.776884]
[1732626914599,0.5104813,228.67,228.64,23.776884]
[1732626914786,0.5104813,228.67,228.66,23.776884]
[1732626915102,0.5104813,228.67,228.62,30.67772261]
[1732626915310,0.5104813,228.67,228.62,4.3739]
[1732626915686,0.5104813,228.67,228.64,26.30382261]
[1732626915889,0.5104813,228.67,228.62,24.3739]
[1732626916086,0.5104813,228.67,228.63,23.776884]
[1732626916287,26.81430391,228.67,228.63,23.776884]
[1732626916593,26.30382261,228.64,228.58,4.3746]
[1732626916897,26.30382261,228.63,228.55,26.30382261]
[1732626917100,26.30382261,228.59,228.54,6.5721]
[1732626917308,26.30382261,228.59,228.52,42.34422261]
[1732626917309,26.30382261,228.56,228.52,4.3759]
[1732626917510,26.30382261,228.57,228.52,4.3759]
[1732626917697,26.30382261,228.56,228.52,4.3759]
[1732626917897,26.30382261,228.57,228.51,4.376]
[1732626918586,26.30382261,228.52,228.45,15.3596]
[1732626918788,26.30382261,228.52,228.47,4.3768]
[1732626919300,26.30382261,228.48,228.45,4.3771]
[1732626919522,26.30382261,228.46,228.4,4.3782]
[1732626919681,26.30382261,228.48,228.4,30.68202261]
[1732626919883,122.15779317,228.56,228.4,30.68202261]
[1732626919884,26.30382261,228.47,228.41,26.30382261]
[1732626920186,6.3067,228.51,228.38,30.68232261]
[1732626920403,26.30382261,228.47,228.39,26.30382261]
[1732626920604,106.09359317,228.5,228.29,10.9506]
[1732626920804,25.0,228.46,228.29,4.3803]
[1732626920996,136.09359317,228.46,228.25,15.3596]
[1732626921308,20.0,228.42,228.28,10.5544]
[1732626921613,106.09359317,228.41,228.28,10.5544]
[1732626921781,26.30382261,228.3,228.25,4.3809]
[1732626922313,26.30382261,228.26,228.2,4.3821]
[1732626922492,26.30382261,228.25,228.2,4.3821]
[1732626922690,26.30382261,228.36,228.23,26.30382261]
[1732626922905,132.39741578,228.35,228.2,4.3821]
[1732626923208,106.09359317,228.35,228.2,4.3821]